bitfinex/quotes_ETHUSD_20220118
["timestamp","ask_amount","ask_price","bid_price","bid_amount"]
[1642495974439,0.00227369,3159.7,3159.1,0.79972631]
[1642495974643,0.00227369,3159.7,3159.0,0.12820527]
[1642495974845,0.00227369,3159.7,3159.0,0.00170527]
[1642495975041,0.00227369,3159.7,3159.1,0.00113685]
[1642495975241,0.00227369,3159.7,3158.9,0.0022737]
[1642495975441,1.52651983,3159.5,3158.8,0.00284212]
[1642495976344,1.2177811,3158.9,3158.8,0.00284212]
[1642495976742,1.2177811,3158.9,3158.7,0.00341054]
[1642495976946,1.2177811,3158.9,3158.4,0.00511581]
[1642495977189,1.2177811,3158.9,3158.3,0.00568424]
[1642495977888,3.92102536,3158.9,3158.3,0.00568424]
[1642495978491,3.92102536,3158.9,3158.1,0.00682108]
[1642495979594,2.70324426,3158.8,3158.1,0.00682108]
[1642495981446,3.00324426,3158.8,3158.1,0.00682108]
[1642495981847,0.1265,3158.7,3158.1,0.00682108]
[1642495982846,2.70324426,3158.6,3158.1,0.00682108]
[1642495985497,2.70324426,3158.6,3158.1,0.79822108]
[1642495985895,2.70324426,3158.6,3158.2,0.00625266]
[1642495986296,2.70324426,3158.8,3158.2,0.00625266]
[1642495986896,2.70324426,3158.8,3158.3,0.79135]
[1642495987298,2.70324426,3159.1,3158.4,0.00511581]
[1642495988100,1.43671314,3159.2,3158.4,0.00511581]
[1642495988939,2.70325166,3159.1,3158.4,0.00511581]
[1642495991239,2.70325166,3159.2,3158.8,1.38414752]
[1642495991438,2.70325166,3159.2,3158.8,1.68414752]
[1642495991639,2.70325166,3159.2,3158.9,0.0022737]
[1642495992083,2.70325166,3159.0,3158.9,0.0022737]
[1642495992485,2.70325166,3159.0,3158.9,0.1287737]
[1642495992990,9.48303161,3159.7,3158.9,4.9787737]
[1642495992991,2.70325166,3159.3,3158.9,4.9787737]
[1642495993188,2.70325166,3159.3,3159.0,0.5825]
[1642495993385,2.70325166,3159.3,3159.0,0.58420527]
[1642495993595,1.55869847,3159.7,3159.2,5.25]
[1642495993791,1.55869847,3159.7,3159.3,3.5600891]
[1642495993990,6.49087995,3160.0,3159.4,5.25]
[1642495994189,6.49087995,3160.0,3159.5,4.93239622]
[1642495994390,0.00113685,3159.9,3159.6,1.0]
[1642495994594,0.00113685,3159.9,3159.8,6.54039265]
[1642495994794,0.00113685,3159.9,3159.8,11.4379286]
[1642495994993,0.00113685,3159.9,3159.8,11.44753595]
[1642495995596,2.35434681,3160.3,3159.9,5.74858946]
[1642495995845,2.35434681,3160.3,3160.0,3.86879305]
[1642495996035,7.42,3160.8,3160.0,3.86879305]
[1642495996036,0.00170527,3160.2,3160.0,3.86879305]
[1642495996237,0.00170527,3160.2,3160.1,9.17903892]
[1642495996435,7.42,3160.8,3160.1,9.17903892]
[1642495996436,7.42,3160.8,3160.1,10.30553892]
[1642495996635,7.42,3160.8,3160.2,0.1265]
[1642495996836,0.00454739,3160.7,3160.3,0.79074]
[1642495997036,0.00454739,3160.7,3160.3,3.91813507]
[1642495997238,0.00397896,3160.6,3160.3,1.09074]
[1642495997439,0.00397896,3160.6,3160.3,0.3]
[1642495997637,0.00341054,3160.5,3160.3,0.3]
[1642495998038,7.42,3160.8,3160.2,0.2025]
[1642495998039,0.00284212,3160.4,3160.2,0.2025]
[1642495998240,0.00284212,3160.4,3160.0,0.4265]
[1642495998443,0.00227369,3160.3,3160.0,0.4265]
[1642495998743,0.00170527,3160.2,3160.0,0.1265]
[1642495999042,0.00113685,3160.1,3160.0,0.1265]
[1642495999241,0.00113685,3160.1,3159.9,0.5825]
[1642495999883,0.00113685,3160.1,3159.9,3.90120713]
[1642496000483,0.00113685,3160.1,3160.0,5.39100717]
[1642496000685,0.00113685,3160.1,3160.0,2.79100717]
[1642496001284,0.00113685,3160.1,3160.0,0.79087]
[1642496001685,0.00113685,3160.1,3160.0,3.63107076]
[1642496001884,0.00113685,3160.1,3160.0,0.91737]
[1642496002285,0.00113685,3160.1,3160.0,0.1265]
[1642496005242,0.00113685,3160.1,3160.0,2.92269097]
[1642496008088,0.00113685,3160.1,3160.0,0.1265]
[1642496008286,0.00113685,3160.1,3159.9,1.37346]
[1642496008491,0.00113685,3160.1,3159.9,1.24696]
[1642496008696,0.00113685,3160.1,3160.0,5.77063182]
[1642496008892,0.00113685,3160.1,3160.0,5.89713182]
[1642496009092,0.00113685,3160.1,3160.0,2.94713182]
[1642496009294,0.00113685,3160.1,3160.0,2.94160662]
[1642496010598,0.00113685,3160.1,3160.0,5.79160662]
[1642496010843,1.6142919,3160.8,3160.1,5.25]
[1642496011039,1.6142919,3160.8,3160.3,0.79071]
[1642496011240,0.00341054,3160.7,3160.4,3.08157471]
[1642496011438,0.00341054,3160.7,3160.4,0.4265]
[1642496011637,0.00284211,3160.6,3160.4,0.3]
[1642496011837,0.00284211,3160.6,3160.1,0.5825]
[1642496012038,3.6021,3161.1,3160.1,3.40281398]
[1642496012039,0.00227369,3160.5,3160.1,3.40281398]
[1642496012238,0.00227369,3160.5,3160.1,3.39700336]
[1642496012438,0.00170527,3160.4,3160.1,3.39700336]
[1642496012638,0.00170527,3160.4,3160.1,0.5825]
[1642496012838,0.00113684,3160.3,3160.1,0.5825]
[1642496013238,0.00397896,3160.8,3160.1,0.5825]
[1642496013642,0.00397896,3160.8,3160.2,0.79089]
[1642496013845,4.32054401,3160.8,3160.2,0.79089]
[1642496014042,4.32054401,3160.8,3160.2,1.09089]
[1642496014341,4.32054401,3160.8,3160.2,0.3]
[1642496014590,2.70625211,3160.8,3160.1,0.1265]
[1642496014792,2.70625211,3160.8,3160.0,0.3]
[1642496015289,0.1265,3160.7,3159.8,1.79958946]
[1642496015692,0.1265,3160.7,3159.9,0.00113685]
[1642496015693,1.61713401,3160.6,3159.9,0.00113685]
[1642496016090,0.00227369,3160.5,3159.9,0.00113685]
[1642496016493,0.00170527,3160.4,3159.9,0.00113685]
[1642496016892,0.00113684,3160.3,3159.9,0.00113685]
[1642496017291,2.70511526,3160.6,3159.9,0.00113685]
[1642496017692,1.61656559,3160.5,3159.9,0.00113685]
[1642496018093,0.00170527,3160.4,3159.9,0.00113685]
[1642496018544,0.00113684,3160.3,3159.9,0.00113685]
[1642496018745,0.00113684,3160.3,3159.8,0.50129473]
[1642496018943,1.6142919,3160.5,3159.8,0.50129473]
[1642496018944,0.00170527,3160.4,3159.8,0.50129473]
[1642496019148,0.00170527,3160.4,3159.9,1.28953002]
[1642496019345,0.00113684,3160.3,3159.9,0.00113685]
[1642496019745,0.00170527,3160.4,3159.9,0.00113685]
[1642496020248,1.6142919,3160.5,3159.8,0.00170527]
[1642496020249,0.00113684,3160.3,3159.8,0.00170527]
[1642496020446,0.00113684,3160.3,3159.9,0.79096]
[1642496020645,0.00170527,3160.4,3159.9,0.79096]
[1642496020847,0.00170527,3160.4,3160.0,0.3]
[1642496021047,0.00113684,3160.3,3160.0,0.3]
[1642496021448,0.00170527,3160.4,3159.9,0.79096]
[1642496021849,1.14469752,3160.3,3159.9,0.79096]
[1642496022090,1.14469752,3160.3,3159.8,0.00170527]
[1642496022292,0.1265,3160.2,3159.8,0.00170527]
[1642496023794,1.47815372,3159.8,3159.5,0.00341055]
[1642496024698,1.47815372,3159.8,3159.1,0.00568424]
[1642496024896,1.47815372,3159.8,3159.3,0.00454739]
[1642496025097,1.47815372,3159.8,3159.1,0.00568424]
[1642496025296,1.47815372,3159.8,3159.3,0.00454739]
[1642496025497,1.47815372,3159.8,3159.1,0.00568424]
[1642496025851,2.70227315,3159.7,3159.1,0.00568424]
[1642496026042,2.70227315,3159.7,3159.1,0.13218424]
[1642496026443,2.70227315,3159.7,3159.2,0.00511582]
[1642496027251,4.100805,3159.7,3159.2,0.00511582]
[1642496027650,1.39853185,3159.7,3159.2,0.00511582]
[1642496028248,1.39853185,3159.7,3159.1,0.00568424]
[1642496028654,2.70227315,3159.6,3159.1,0.00568424]
[1642496030597,0.1265,3159.5,3159.1,0.00568424]
[1642496030795,1.12562692,3159.2,3159.1,0.00568424]
[1642496030990,1.12562692,3159.2,3158.9,2.43222694]
[1642496030991,1.12562692,3159.2,3158.9,2.43904803]
[1642496031192,1.1265,3159.5,3159.0,0.00625266]
[1642496032191,2.70227315,3159.4,3159.0,0.00625266]
[1642496032392,0.1265,3159.3,3159.0,0.00625266]
[1642496032590,0.1265,3159.3,3158.7,0.00795793]
[1642496033191,2.70227315,3159.4,3158.7,0.00795793]
[1642496033445,2.70227315,3159.4,3158.6,0.3]
[1642496033446,2.70227315,3159.4,3158.8,0.79123]
[1642496033646,2.70227315,3159.2,3158.8,1.09123]
[1642496033844,2.70227315,3159.2,3158.9,0.00682109]
[1642496035045,2.70227315,3159.3,3158.8,2.43222694]
[1642496035444,2.70227315,3159.3,3158.9,0.00682109]
[1642496036048,0.3,3159.3,3158.9,0.00682109]
[1642496036246,0.1265,3159.2,3158.9,0.00682109]
[1642496036443,0.1265,3159.2,3158.7,0.00795793]
[1642496036643,0.1265,3159.3,3158.7,0.00795793]
[1642496037090,1.17265238,3159.6,3158.7,0.00795793]
[1642496037091,2.70227315,3159.2,3158.7,1.41339709]
[1642496037487,2.70227315,3159.2,3158.8,0.00738951]
[1642496037689,2.70227315,3159.2,3158.8,0.79862951]
[1642496037888,2.70227315,3159.2,3158.8,0.00738951]
[1642496038086,2.70227315,3159.2,3158.9,0.00682109]
[1642496038287,2.70227315,3159.2,3158.6,0.00852636]
[1642496038494,2.70227315,3159.4,3158.6,0.00852636]
[1642496039290,2.70227315,3159.4,3158.8,1.4272264]
[1642496039696,2.70227315,3159.4,3158.9,0.00682109]
[1642496040846,2.70227315,3159.4,3158.8,0.00738951]
[1642496041036,2.70227315,3159.4,3158.9,0.79121]
[1642496041437,2.70227315,3159.4,3159.1,1.41965643]
[1642496041936,2.70227315,3159.4,3159.2,0.00511582]
[1642496042344,2.70227315,3159.6,3159.2,0.00511582]
[1642496044342,2.70227315,3159.6,3159.2,2.7988678]
[1642496044787,2.70227315,3159.6,3159.3,0.00454739]
[1642496045887,2.70227315,3159.6,3159.4,0.34988451]
[1642496046087,2.70227315,3159.6,3159.5,4.0265]
[1642496046287,1.6142919,3159.9,3159.5,0.12991055]
[1642496046489,2.70227315,3160.0,3159.5,0.12991055]
[1642496046690,2.70227315,3160.0,3159.6,0.00284212]
[1642496047890,2.70227315,3160.1,3159.6,0.00284212]
[1642496048541,2.70227315,3160.1,3159.4,0.00397897]
[1642496048741,2.70227315,3160.1,3159.7,0.0022737]
[1642496048941,2.70227315,3160.1,3159.4,0.00397897]
[1642496051343,2.70227315,3160.1,3159.4,0.79507897]
[1642496051544,2.70227315,3160.1,3159.5,0.1265]
[1642496051745,2.70227315,3160.1,3159.5,0.12991055]
[1642496051944,2.70227315,3160.1,3159.1,4.27876062]
[1642496051945,2.70227315,3160.1,3159.6,0.00284212]
[1642496052193,2.70227315,3160.1,3159.6,1.14114212]
[1642496052392,2.70227315,3160.1,3159.7,0.1265]
[1642496052593,2.70227315,3160.1,3159.7,0.1287737]
[1642496052796,2.70227315,3160.1,3159.8,0.00170527]
[1642496052993,2.70227315,3160.1,3159.9,0.1265]
[1642496053597,2.70227315,3160.1,3159.9,0.91738]
[1642496053796,2.70227315,3160.1,3160.0,0.3]
[1642496054402,2.70227315,3160.6,3160.0,1.3]
[1642496054801,2.70511526,3160.6,3160.1,0.7909]
[1642496055000,2.70511526,3160.6,3160.0,1.0]
[1642496055200,2.83161526,3160.6,3159.9,0.49958946]
[1642496055701,2.83161526,3160.6,3159.8,0.79269527]
[1642496056138,2.83161526,3160.6,3159.9,0.00113685]
[1642496056539,2.70511526,3160.6,3159.9,0.00113685]
[1642496056741,2.70511526,3160.6,3159.8,0.12820527]
[1642496056940,2.70511526,3160.6,3159.9,0.00113685]
[1642496057143,1.20121729,3160.1,3159.9,0.00113685]
[1642496057343,3.0265,3160.0,3159.9,0.00113685]
[1642496057541,0.1265,3160.0,3159.8,0.00170527]
[1642496057740,0.1265,3160.0,3159.6,0.00284212]
[1642496057945,1.20121729,3160.1,3159.6,0.00284212]
[1642496058240,1.46588259,3159.8,3159.6,0.00284212]
[1642496059246,1.46588259,3159.8,3159.3,0.00454739]
[1642496060089,2.70227315,3159.7,3159.3,0.00454739]
[1642496060692,2.70227315,3159.7,3159.2,0.00511582]
[1642496060889,5.76484382,3159.7,3159.0,0.00625266]
[1642496061090,2.70227315,3159.7,3159.0,0.00625266]
[1642496061289,5.76846855,3159.7,3159.0,0.00625266]
[1642496061489,0.1265,3159.6,3159.0,0.00625266]
[1642496061688,0.1265,3159.6,3158.8,2.43222694]
[1642496061689,0.1265,3159.6,3158.9,0.00682109]
[1642496062089,2.82877315,3159.6,3158.9,0.00682109]
[1642496062291,2.70227315,3159.6,3158.9,0.00682109]
[1642496062488,2.70227315,3159.6,3158.8,0.00738951]
[1642496063346,2.70227315,3159.6,3158.8,2.43961645]
[1642496063545,2.70227315,3159.6,3158.8,3.23085645]
[1642496063745,2.70227315,3159.6,3158.9,0.00682109]
[1642496064847,1.10292564,3159.1,3158.9,0.00682109]
[1642496065248,3.02408451,3159.5,3158.9,0.00682109]
[1642496065448,0.1265,3159.5,3158.8,0.00738951]
[1642496066246,1.46071135,3159.4,3158.8,0.00738951]
[1642496066448,1.46071135,3159.4,3158.9,0.1265]
[1642496066648,1.46071135,3159.4,3158.8,0.92511951]
[1642496066848,1.46071135,3159.4,3159.0,0.00625266]
[1642496067092,1.46071135,3159.4,3158.9,0.00682109]
[1642496067295,4.1629845,3159.4,3158.9,0.00682109]
[1642496067496,4.1629845,3159.4,3158.8,0.00738951]
[1642496068597,2.70227315,3159.3,3158.8,0.00738951]
[1642496068799,2.82877315,3159.3,3158.8,0.00738951]
[1642496069396,2.82877315,3159.3,3158.7,0.00795793]
[1642496070601,2.82877315,3159.3,3158.5,0.00909478]
[1642496070850,5.86521453,3159.3,3158.5,0.00909478]
[1642496071047,1.38398639,3158.8,3158.5,0.00909478]
[1642496071247,1.38398639,3158.8,3158.1,6.89821496]
[1642496071248,2.89665438,3158.7,3158.1,3.24261496]
[1642496071450,0.12763685,3158.7,3158.1,3.24261496]
[1642496071645,1.0,3158.6,3158.3,2.42895094]
[1642496071845,1.39243329,3158.4,3158.3,2.42895094]
[1642496072045,4.64243329,3158.4,3158.3,2.42895094]
[1642496072247,4.76893329,3158.4,3158.3,2.43008779]
[1642496072445,2.51893329,3158.4,3158.3,2.43008779]
[1642496072646,1.51893329,3158.4,3158.3,2.43008779]
[1642496072844,2.51893329,3158.4,3158.3,0.00113685]
[1642496073149,2.51893329,3158.4,3158.0,0.20266343]
[1642496073150,1.51893329,3158.4,3158.0,0.20266343]
[1642496073347,5.15,3158.2,3157.2,0.1265]
[1642496073553,1.1265,3158.1,3157.2,0.1265]
[1642496073749,1.1265,3158.1,3157.5,3.23967795]
[1642496073950,3.01033,3158.1,3157.5,3.23967795]
[1642496074152,3.01033,3158.1,3157.6,0.00397896]
[1642496074349,21.39033,3158.1,3157.6,0.00397896]
[1642496075294,0.79192,3158.0,3157.6,0.00397896]
[1642496075495,0.1265,3157.9,3157.6,0.00397896]
[1642496075696,0.456,3157.8,3157.6,0.00397896]
[1642496075896,0.1265,3157.7,3157.2,0.1265]
[1642496076097,0.1265,3157.7,3157.1,4.05614082]
[1642496076098,0.001,3157.3,3157.1,4.05614082]
[1642496076296,5.8325,3157.2,3157.1,4.05614082]
[1642496076495,8.25774749,3157.2,3156.6,5.41875154]
[1642496076696,26.93774749,3157.2,3157.1,0.00284212]
[1642496076893,24.5125,3157.2,3157.1,0.00284212]
[1642496077095,0.8825,3157.2,3156.2,0.00795793]
[1642496077298,1.67459,3157.2,3156.2,0.00795793]
[1642496077498,3.16683604,3157.1,3156.2,0.00795793]
[1642496077697,0.5825,3157.2,3156.2,0.00795793]
[1642496077896,0.001,3157.3,3156.2,0.13465793]
[1642496077897,0.1277,3157.3,3156.2,0.13465793]
[1642496078097,1.37999446,3157.0,3156.3,1.36246801]
[1642496078339,1.37999446,3157.0,3156.3,1.36985752]
[1642496078544,1.37999446,3157.0,3156.4,0.00682108]
[1642496078943,1.37999446,3157.0,3156.3,0.00738951]
[1642496080244,2.70227315,3156.9,3156.3,0.00738951]
[1642496080847,3.00227315,3156.9,3156.3,0.00738951]
[1642496081048,2.70227315,3156.9,3156.3,0.00738951]
[1642496081949,6.16760428,3156.9,3156.3,0.00738951]
[1642496082225,2.70227315,3156.9,3156.3,0.00738951]
[1642496082613,6.17108504,3156.9,3156.3,0.00738951]
[1642496082817,1.32294686,3156.1,3155.9,0.0096632]
[1642496083419,1.32294686,3156.1,3155.7,0.01080005]
[1642496085123,1.62294686,3156.1,3155.5,0.01193689]
[1642496085323,0.1267,3156.0,3155.5,0.01193689]
[1642496085524,1.62294686,3156.1,3155.5,0.01193689]
[1642496085724,0.1267,3156.0,3155.5,0.01193689]
[1642496085940,1.32294686,3156.1,3155.5,0.01193689]
[1642496086141,2.70227315,3156.0,3155.5,0.01193689]
[1642496086344,1.44593871,3155.6,3155.4,0.28851648]
[1642496086543,1.44593871,3155.6,3155.0,4.18284082]
[1642496086544,5.3767,3155.5,3155.0,2.0599683]
[1642496086747,18.38,3155.4,3154.8,2.0599683]
[1642496086941,18.38,3155.4,3155.1,0.0022737]
[1642496086942,0.5827,3155.3,3155.1,0.0022737]
[1642496087340,1.37528,3155.3,3155.1,0.0022737]
[1642496087541,1.37528,3155.3,3154.8,0.00397897]
[1642496087942,0.456,3155.3,3154.8,2.91118601]
[1642496088240,2.70227315,3155.4,3154.9,0.00341054]
[1642496088444,2.70227315,3155.2,3154.9,0.00341054]
[1642496088644,2.82897315,3155.2,3154.8,0.13067897]
[1642496088850,1.51572877,3155.1,3154.9,0.00341054]
[1642496089044,0.1267,3155.0,3154.9,0.00341054]
[1642496089246,1.64242877,3155.1,3154.9,0.00341054]
[1642496089695,7.40448845,3155.0,3154.9,0.00341054]
[1642496089898,3.90448845,3155.0,3154.9,0.00341054]
[1642496090099,3.90448845,3155.0,3154.8,0.1267]
[1642496090100,5.25,3154.7,3152.9,9.213734]
[1642496090298,5.25,3154.7,3152.9,5.408834]
[1642496090299,0.01295262,3154.2,3152.9,5.408834]
[1642496090500,0.5828,3154.1,3153.2,0.0096632]
[1642496090700,0.5828,3154.1,3152.4,6.77494576]
[1642496090701,1.25814941,3152.8,3152.4,6.77494576]
[1642496090897,1.25814941,3152.8,3152.4,6.72494576]
[1642496090898,1.95414941,3152.8,3152.4,6.72494576]
[1642496091098,0.31383117,3152.5,3152.4,6.72494576]
[1642496091499,0.31383117,3152.5,3152.4,6.72949315]
[1642496091699,1.152,3152.8,3152.4,6.72949315]
[1642496091902,3.6714,3153.9,3152.4,6.72949315]
[1642496091903,3.7982,3153.9,3152.4,6.72949315]
[1642496092202,4.609,3154.2,3152.5,3.03798601]
[1642496092203,0.00113684,3153.4,3152.5,3.03798601]
[1642496092500,0.00113684,3153.4,3152.6,1.38057528]
[1642496092801,0.00113684,3153.4,3153.0,1.33004036]
[1642496093001,0.00113684,3153.4,3153.1,0.1268]
[1642496093202,0.00113684,3153.4,3152.8,0.1268]
[1642496093449,0.00113684,3153.4,3153.3,1.48945937]
[1642496093651,0.00113684,3153.4,3152.9,0.00170527]
[1642496094248,0.00113684,3153.4,3153.2,0.00571715]
[1642496094650,0.00113684,3153.4,3153.2,1.52075589]
[1642496094850,0.00113684,3153.4,3153.2,0.00571715]
[1642496095551,0.00113684,3153.4,3153.3,0.1268]
[1642496095948,0.00113684,3153.4,3153.3,1.26546444]
[1642496096150,0.00113684,3153.4,3153.3,2.23456444]
[1642496096653,0.00113684,3153.4,3153.3,5.53456444]
[1642496096852,2.853e-05,3153.8,3153.3,6.53456444]
[1642496097101,1.35747506,3154.1,3153.5,5.25]
[1642496097397,0.00113685,3153.6,3153.5,8.45720704]
[1642496097597,0.00113685,3153.6,3153.5,5.7568]
[1642496097997,3.9893042,3154.5,3153.6,5.25]
[1642496098199,2.7085042,3154.5,3153.7,3.36320704]
[1642496098399,3.7861,3155.3,3153.8,0.1268]
[1642496098400,0.00227369,3154.0,3153.8,0.1268]
[1642496098602,6.76807091,3155.1,3153.9,5.706]
[1642496098801,6.76807091,3155.1,3153.9,8.91320704]
[1642496099001,0.00568424,3155.0,3154.0,2.87461781]
[1642496099206,0.00568424,3155.0,3154.3,1.79213]
[1642496099403,5.32333684,3155.6,3154.9,1.5]
[1642496099603,5.32333684,3155.6,3155.0,0.456]
[1642496099804,0.00284212,3155.5,3155.1,0.1267]
[1642496100004,0.00284212,3155.5,3155.2,0.456]
[1642496100205,0.00227369,3155.4,3155.3,8.15262179]
[1642496100409,0.00227369,3155.4,3155.3,3.35862179]
[1642496100614,0.00682108,3155.4,3155.3,0.8827]
[1642496100872,0.00682108,3155.4,3155.3,0.456]
[1642496101360,0.00682108,3155.4,3155.0,0.1267]
[1642496101560,0.00682108,3155.4,3155.1,2.66262273]
[1642496101761,0.1267,3156.2,3155.2,0.1267]
[1642496101762,0.00170527,3155.3,3155.2,0.1267]
[1642496102358,0.00170527,3155.3,3155.2,0.62628946]
[1642496103359,0.00170527,3155.3,3155.2,1.69198946]
[1642496103561,0.00170527,3155.3,3155.2,6.9198]
[1642496103764,0.00170527,3155.3,3155.2,6.1638]
[1642496103963,0.00170527,3155.3,3155.2,1.6698]
[1642496104163,3.1,3155.4,3155.3,5.74788419]
[1642496104467,3.1,3155.4,3155.3,6.50388419]
[1642496104694,3.1,3155.4,3155.3,0.95388419]
[1642496104894,3.1,3155.4,3155.3,1.25388419]
[1642496105093,3.886e-05,3155.4,3155.3,6.006]
[1642496105295,3.8229,3156.3,3156.1,1.49385331]
[1642496105497,3.8229,3156.3,3156.1,2.75785331]
[1642496105796,0.00511581,3156.2,3156.1,3.05785331]
[1642496106598,3.19470676,3156.3,3156.2,5.25]
[1642496106801,6.65417105,3157.2,3156.2,5.706]
[1642496106802,4.01279829,3156.7,3156.2,5.706]
[1642496107001,4.01279829,3156.7,3156.3,0.1267]
[1642496107197,4.01564041,3156.7,3156.4,0.456]
[1642496107597,4.01564041,3156.7,3156.5,1.31800317]
[1642496107800,4.01564041,3156.7,3156.6,5.3767]
[1642496107999,4.01564041,3156.7,3156.6,5.6767]
[1642496108200,8.07177189,3157.7,3156.7,5.25]
[1642496108201,4.01279829,3157.7,3156.7,5.25]
[1642496108449,4.01279829,3157.7,3156.8,6.38616592]
[1642496108649,4.01279829,3157.7,3157.2,5.702]
[1642496108947,4.01279829,3157.7,3157.6,1.33908861]
[1642496109147,4.01279829,3157.7,3157.6,2.2504]
[1642496109347,4.01620883,3157.7,3157.6,2.2504]
[1642496109552,0.00341054,3157.7,3157.6,1.9504]
[1642496109751,0.00341054,3157.7,3157.6,1.8239]
[1642496110149,0.00341054,3157.7,3156.9,0.00113685]
[1642496110353,1.18246507,3157.6,3156.9,0.00113685]
[1642496110549,1.18246507,3157.6,3157.1,1.79772631]
[1642496110550,0.00284212,3157.6,3157.1,1.79772631]
[1642496110749,0.0022737,3157.5,3157.1,1.79772631]
[1642496110953,0.0022737,3157.5,3157.1,1.76815537]
[1642496111151,0.00170527,3157.4,3157.2,0.1265]
[1642496111351,0.00170527,3157.4,3157.3,5.706]
[1642496111552,0.1265,3157.9,3157.3,6.1325]
[1642496111750,0.1265,3157.9,3157.5,0.79141]
[1642496111949,0.00397897,3157.8,3157.7,1.39641012]
[1642496112201,0.00397897,3157.8,3157.7,4.2098461]
[1642496112398,0.00397897,3157.8,3157.7,4.9658461]
[1642496112597,0.00397897,3157.8,3157.7,5.2658461]
[1642496113196,0.06328789,3158.0,3157.9,5.25]
[1642496113503,1.0,3158.6,3158.1,0.11939833]
[1642496113701,8.08959303,3159.4,3158.3,0.10240545]
[1642496113901,8.08959303,3159.4,3158.5,5.3]
[1642496114100,8.08959303,3159.4,3158.6,3.9396842]
[1642496114101,0.00454739,3159.3,3158.6,3.9396842]
[1642496114300,0.00454739,3159.3,3158.7,1.1873161]
[1642496114499,2.93549303,3159.4,3158.9,5.3]
[1642496114706,5.32333684,3160.0,3159.1,5.3]
[1642496114902,4.03891095,3160.0,3159.5,5.702]
[1642496115199,5.32333684,3160.4,3159.7,5.3]
[1642496115400,5.32333684,3160.4,3159.6,0.456]
[1642496115401,6.86970708,3160.4,3159.8,0.456]
[1642496115603,0.00625266,3160.3,3159.9,0.456]
[1642496115839,0.00625266,3160.3,3160.0,0.456]
[1642496116041,5.32333684,3160.4,3160.0,0.456]
[1642496116042,0.00568424,3160.2,3160.0,0.456]
[1642496116443,5.32333684,3160.4,3160.0,0.456]
[1642496116444,0.00511582,3160.1,3160.0,2.806]
[1642496116842,0.00511582,3160.1,3160.0,1.056]
[1642496117246,5.16151582,3160.9,3160.0,1.056]
[1642496117442,5.16151582,3160.9,3160.0,0.756]
[1642496117644,0.00397896,3160.8,3160.1,0.49988419]
[1642496117844,0.1265,3160.7,3160.1,0.95588419]
[1642496118043,1.08767948,3160.3,3160.1,0.49988419]
[1642496118448,1.08767948,3160.3,3159.6,1.5]
[1642496118649,0.1265,3160.2,3159.6,1.5]
[1642496118848,0.1265,3160.2,3159.7,0.0022737]
[1642496120495,3.871386,3159.8,3159.7,0.0022737]
[1642496120696,1.521386,3159.8,3159.7,0.0022737]
[1642496120897,0.1265,3160.2,3159.7,0.0022737]
[1642496122098,2.4240974,3159.8,3159.7,0.0022737]
[1642496122898,3.0240974,3159.8,3159.7,0.0022737]
[1642496123338,6.356,3159.8,3159.7,0.0022737]
[1642496123542,0.456,3159.8,3159.7,0.0022737]
[1642496124343,2.656,3159.8,3159.7,0.0022737]
[1642496124542,1.44557459,3159.9,3159.7,0.0022737]
[1642496124743,1.44557459,3159.9,3158.8,0.1265]
[1642496124744,4.3,3159.8,3158.8,0.1265]
[1642496124946,0.1266,3159.7,3158.8,0.1265]
[1642496125249,0.1266,3159.7,3158.9,0.00454739]
[1642496125644,0.1266,3159.7,3158.6,0.00625266]
[1642496125844,1.42718483,3159.6,3158.7,0.1265]
[1642496126245,1.42718483,3159.6,3158.8,0.00511581]
[1642496126849,1.72718483,3159.6,3158.8,0.00511581]
[1642496127295,1.53765561,3159.0,3158.8,0.00511581]
[1642496127495,1.24074909,3158.9,3158.8,0.00511581]
[1642496127999,1.24074909,3158.9,3158.1,0.00909477]
[1642496128301,5.0831,3159.8,3158.2,0.5825]
[1642496128500,5.0831,3159.8,3158.2,2.2207613]
[1642496128698,5.0831,3159.8,3158.7,0.79107]
[1642496128899,5.0831,3159.8,3158.8,0.5825]
[1642496129099,5.0831,3159.8,3159.3,1.52761411]
[1642496129301,5.0831,3159.8,3159.3,2.27241411]
[1642496129501,8.1831,3159.8,3159.4,0.45770527]
[1642496129700,8.1831,3159.8,3159.4,0.00170527]
[1642496129899,3.1,3159.8,3159.5,0.00113685]
[1642496130100,3.1,3159.8,3159.4,0.29570527]
[1642496130604,3.1,3159.8,3159.5,0.00113685]
[1642496131444,2.60011581,3159.8,3159.5,0.00113685]
[1642496132045,2.45911581,3159.8,3159.6,0.1265]
[1642496133447,2.45911581,3159.8,3159.5,0.12763685]
[1642496133651,2.45911581,3159.8,3159.5,0.00113685]
[1642496134594,2.10011581,3159.8,3159.5,0.00113685]
[1642496135400,0.1265,3159.7,3159.5,0.00113685]
[1642496135799,0.1265,3159.7,3158.4,1.10878793]
[1642496135800,1.35811336,3159.6,3158.5,0.00682108]
[1642496135996,0.1265,3159.5,3158.5,1.34739777]
[1642496136396,0.1265,3159.7,3158.6,0.00625266]
[1642496136799,2.10011581,3159.8,3158.8,5.3]
[1642496136800,2.08561581,3159.8,3158.8,5.3]
[1642496137198,2.08561581,3159.8,3159.0,0.96376074]
[1642496137399,2.08561581,3159.8,3159.0,1.26376074]
[1642496137600,2.08561581,3159.8,3159.1,0.68341054]
[1642496137800,2.08561581,3159.8,3159.5,1.5]
[1642496137998,2.08561581,3159.8,3159.5,2.5257]
[1642496138199,2.08561581,3159.8,3159.5,2.8257]
[1642496138848,2.08561581,3159.8,3159.6,1.33418582]
[1642496139551,2.08561581,3159.8,3159.6,2.12515582]
[1642496141149,2.08561581,3159.8,3159.7,0.1265]
[1642496141949,2.08561581,3159.8,3159.7,0.5065]
[1642496142194,2.08561581,3159.8,3159.7,3.0565]
[1642496142595,4.46603352,3159.8,3159.7,3.92316721]
[1642496142795,4.46603352,3159.8,3159.7,3.62316721]
[1642496143301,3.96603352,3159.8,3159.7,4.62316721]
[1642496143504,1.54123931,3160.2,3159.8,4.0]
[1642496143700,1.54123931,3160.2,3159.9,2.29716]
[1642496143903,0.0022737,3160.1,3159.9,2.29716]
[1642496144102,2.4240974,3160.4,3160.0,5.6]
[1642496144401,0.00113684,3160.3,3160.1,0.38]
[1642496144603,2.4240974,3160.4,3160.2,5.3]
[1642496144804,2.4240974,3160.6,3160.3,0.79063]
[1642496145003,2.4240974,3160.6,3160.3,1.79063]
[1642496145202,2.42580267,3160.6,3160.3,1.79063]
[1642496145602,1.92580267,3160.6,3160.3,0.79063]
[1642496146045,1.67980267,3160.6,3160.3,0.79063]
[1642496146243,1.42580267,3160.6,3160.3,0.79063]